bitfinex-derivatives/quotes_ETHF0:USTF0_20250904
["timestamp","ask_amount","ask_price","bid_price","bid_amount"]
[1757005906844,1.917,4311.5,4311.2,3.2078]
[1757005906845,1.4356,4311.3,4311.2,3.2078]
[1757005907949,1.4055,4310.3,4310.2,2.06765921]
[1757005908147,0.8123,4310.3,4310.2,0.4195]
[1757005908849,1.4055,4310.2,4310.1,3.2078]
[1757005909344,1.4055,4310.2,4309.6,2.06765921]
[1757005909544,1.4055,4309.7,4309.6,0.4195]
[1757005911047,1.4055,4309.7,4309.5,3.2078]
[1757005911048,0.5932,4309.6,4309.5,3.2078]
[1757005911340,1.4055,4309.6,4309.5,3.2078]
[1757005911941,1.4055,4309.6,4309.5,3.6273]
[1757005912343,1.4055,4309.6,4309.5,4.0101]
[1757005912747,1.4055,4309.6,4309.5,3.2078]
[1757005913339,1.4055,4309.6,4309.5,3.6273]
[1757005913849,1.4055,4309.6,4309.5,0.4195]
[1757005915052,1.0096,4309.6,4309.5,1.2139]
[1757005915247,0.8322,4309.9,4309.8,0.8023]
[1757005915446,0.5932,4309.9,4309.8,1.2139]
[1757005916049,0.2418,4310.0,4309.8,1.2139]
[1757005916050,3.2078,4310.4,4309.8,1.2139]
[1757005916345,0.5932,4310.3,4309.9,0.4116]
[1757005916544,1.4055,4310.3,4310.2,0.8023]
[1757005917342,0.4808,4310.5,4310.2,0.8023]
[1757005917343,0.5932,4310.5,4310.2,4.8023]
[1757005917542,0.6582,4311.0,4310.9,0.8023]
[1757005917752,1.0541,4311.0,4310.9,0.8023]
[1757005918142,1.6473,4311.0,4310.9,0.8023]
[1757005918343,1.2514,4311.0,4310.9,1.2139]
[1757005918547,0.5932,4311.0,4310.9,1.2139]
[1757005920146,1.2514,4311.0,4310.9,1.2139]
[1757005920955,0.8312,4311.4,4311.3,1.2139]
[1757005921141,1.2476,4311.4,4311.3,1.2139]
[1757005922555,1.2476,4311.4,4311.3,0.8023]
[1757005926050,1.6435,4311.4,4311.3,0.8023]
[1757005929054,1.6435,4311.4,4311.3,0.4195]
[1757005929656,1.6435,4311.4,4311.0,3.2078]
[1757005929956,0.8123,4311.1,4311.0,3.6273]
[1757005930146,1.4055,4311.1,4311.0,3.6273]
[1757005930355,1.4055,4311.1,4311.0,3.2078]
[1757005931359,0.2418,4311.0,4310.5,3.4458]
[1757005931660,0.2418,4311.0,4310.5,3.8653]
[1757005931661,1.4055,4310.6,4310.5,3.8653]
[1757005931861,1.4055,4310.6,4310.5,4.2481]
[1757005933158,0.5932,4310.9,4310.8,0.8023]
[1757005933357,1.4055,4311.4,4311.3,0.8023]
[1757005934758,0.5932,4311.4,4311.3,0.8023]
[1757005934958,0.5932,4312.4,4311.9,0.4116]
[1757005935160,1.0096,4312.4,4312.3,0.8023]
[1757005935361,1.0096,4312.4,4312.3,1.2139]
[1757005935559,1.0096,4312.4,4312.3,0.8023]
[1757005935959,1.0096,4312.4,4312.3,4.0101]
[1757005936169,0.5932,4312.4,4312.3,4.4217]
[1757005936467,1.4055,4312.4,4312.3,4.0101]
[1757005943668,1.4055,4312.4,4312.3,3.6273]
[1757005944571,1.4055,4312.4,4312.3,4.0214]
[1757005945072,0.5846,4312.8,4312.3,4.0214]
[1757005945275,0.238,4312.9,4312.3,4.0214]
[1757005945276,1.3588,4312.9,4312.8,0.8056]
[1757005945568,0.5846,4312.9,4312.8,1.1948]
[1757005945966,1.3588,4312.9,4312.8,0.8056]
[1757005946167,1.3588,4312.9,4312.8,1.1948]
[1757005946168,0.9679,4312.9,4312.8,1.1948]
[1757005946767,0.9679,4312.9,4312.8,0.8056]
[1757005947468,0.5846,4312.9,4312.8,4.4026]
[1757005949468,0.9679,4312.9,4312.8,4.4026]
[1757005950774,0.2418,4313.5,4312.8,4.43069]
[1757005950973,0.5846,4313.4,4313.3,4.4026]
[1757005951276,0.5846,4313.4,4313.3,4.6396]
[1757005951678,0.9679,4313.9,4313.8,0.4115]
[1757005951970,1.3588,4313.9,4313.8,0.4115]
[1757005952184,1.3588,4313.9,4313.8,0.8056]
[1757005952369,5.59061,4313.9,4313.5,0.237]
[1757005952568,0.2418,4314.0,4313.3,3.2078]
[1757005952569,1.3588,4313.4,4313.3,3.2078]
[1757005953077,1.3588,4313.4,4313.3,3.6193]
[1757005953268,1.3588,4313.4,4313.3,0.4115]
[1757005953671,0.2245,4313.0,4312.9,0.8056]
[1757005953871,0.2245,4313.0,4312.8,3.2078]
[1757005953872,0.9987,4313.0,4312.8,3.2078]
[1757005954072,0.5846,4312.9,4312.8,3.2078]
[1757005954275,1.3588,4312.9,4312.8,3.6193]
[1757005955777,1.3588,4312.9,4312.8,4.0134]
[1757005956676,1.3588,4312.9,4312.8,3.2078]
[1757005956973,1.3588,4312.9,4312.8,3.6193]
[1757005957172,0.9987,4312.5,4312.4,0.6485]
[1757005957474,0.5846,4312.4,4312.3,3.2078]
[1757005957681,1.3588,4312.4,4312.3,3.2078]
[1757005958174,1.3588,4312.4,4312.3,3.6193]
[1757005958776,1.3588,4312.4,4312.3,4.0134]
[1757005959773,1.3588,4312.4,4312.3,3.2078]
[1757005960071,1.3588,4312.4,4312.3,4.0134]
[1757005961069,0.5846,4312.4,4312.3,4.4026]
[1757005962272,0.9679,4312.4,4312.3,4.4026]
[1757005963465,1.3588,4312.4,4312.3,4.0134]
[1757005963671,1.3588,4312.4,4312.3,3.6193]
[1757005966977,1.3588,4312.4,4312.3,4.0134]
[1757005967579,1.3475,4312.4,4312.3,4.0134]
[1757005969585,1.3475,4312.4,4312.3,4.382]
[1757005970477,1.3475,4312.4,4312.3,4.0134]
[1757005970678,1.3475,4312.4,4312.3,4.382]
[1757005971985,1.3475,4312.4,4312.3,4.0134]
[1757005976579,1.3475,4312.4,4312.3,0.8056]
[1757005976783,0.5977,4312.9,4312.3,4.0134]
[1757005977086,1.0004,4312.9,4312.8,1.1699]
[1757005977582,1.0004,4312.9,4312.8,0.8013]
[1757005977790,1.38,4312.9,4312.8,0.8013]
[1757005979791,0.827,4312.5,4312.4,0.4032]
[1757005979991,1.6093,4312.5,4312.4,0.4032]
[1757005980289,1.6093,4312.5,4312.3,3.2078]
[1757005980290,0.7823,4311.9,4311.8,3.611]
[1757005980490,1.38,4311.9,4311.8,3.611]
[1757005980987,1.38,4311.9,4311.8,3.2078]
[1757005981194,0.2293,4311.5,4311.3,2.06765921]
[1757005981486,1.0004,4311.8,4311.7,1.1699]
[1757005981691,1.38,4311.8,4311.7,0.4032]
[1757005981890,1.38,4311.8,4311.0,3.62526]
[1757005982096,0.2293,4311.5,4311.0,3.5764]
[1757005982292,1.0004,4311.1,4311.0,4.3777]
[1757005982496,1.0004,4311.1,4311.0,4.0091]
[1757005983291,1.0004,4311.1,4311.0,4.3777]
[1757005983490,0.5977,4311.1,4311.0,4.3777]
[1757005983991,0.5977,4311.4,4311.0,3.2078]
[1757005984194,0.827,4311.5,4311.4,1.1699]
[1757005984391,0.827,4311.5,4311.4,0.8013]
[1757005984392,1.2297,4311.5,4311.4,0.8013]
[1757005985492,1.0116,4311.5,4311.0,3.62526]
[1757005985788,1.38,4311.4,4311.3,0.8013]
[1757005985994,0.5977,4311.3,4311.0,3.2078]
[1757005986187,1.38,4311.1,4311.0,3.611]
[1757005986699,1.38,4311.1,4311.0,4.0091]
[1757005986989,0.5977,4311.8,4311.3,0.8013]
[1757005987192,1.0004,4311.8,4311.7,0.8013]
[1757005987792,1.0004,4311.8,4311.0,3.5211]
[1757005987793,1.38,4311.8,4311.0,3.4448]
[1757005987994,1.0004,4311.1,4311.0,4.2461]
[1757005988188,0.5977,4311.1,4311.0,4.3777]
[1757005988386,0.5977,4311.1,4311.0,4.79516]
[1757005988991,0.2293,4311.5,4311.1,0.3686]
[1757005989192,0.827,4311.5,4311.4,1.1699]
[1757005990102,0.5977,4311.5,4311.4,1.1699]
[1757005990401,0.827,4311.5,4311.4,1.1699]
[1757005991000,0.827,4311.5,4311.4,1.58732]
[1757005991200,0.5977,4311.5,4311.4,1.58732]
[1757005991593,0.5977,4311.5,4311.4,1.1699]
[1757005991898,1.2297,4311.5,4311.4,1.1699]
[1757005993102,1.2297,4311.5,4311.4,1.58732]
[1757005993696,0.2293,4312.0,4311.9,0.8013]
[1757005993902,1.6093,4312.0,4311.9,0.8013]
[1757005994398,0.5977,4312.3,4312.0,0.3686]
[1757005994602,0.5977,4312.3,4312.2,1.58724]
[1757005994801,0.5977,4312.3,4312.2,1.1699]
[1757005994998,1.0004,4312.3,4312.2,1.1699]
[1757005995395,0.5977,4312.7,4312.4,0.41732]
[1757005995596,1.0004,4312.7,4312.6,0.8013]
[1757005995798,1.0004,4312.7,4312.6,1.1699]
[1757005996202,1.0004,4312.7,4312.6,1.58721]
[1757005996705,1.0004,4312.7,4312.6,0.8013]
[1757005999105,0.5977,4312.7,4312.6,1.56561]
[1757005999504,0.9631,4312.7,4312.6,1.56561]
[1757005999704,1.3444,4312.7,4312.6,0.8013]
[1757006000406,0.559,4312.9,4312.5,3.2078]
[1757006000606,0.559,4312.6,4312.5,4.71231]
[1757006001800,0.5899,4313.0,4312.9,0.7402]
[1757006002301,1.1489,4313.0,4312.9,0.7402]
[1757006002808,0.559,4312.9,4312.5,3.4448]
[1757006003002,1.3057,4312.6,4312.5,3.5721]
[1757006003202,0.2245,4313.0,4312.0,3.5721]
[1757006003203,0.7467,4312.1,4312.0,3.5721]
[1757006003403,0.7467,4312.1,4312.0,3.948]
[1757006003404,1.3057,4312.1,4312.0,3.948]
[1757006003602,1.3057,4312.1,4312.0,3.5721]
[1757006003906,1.3057,4312.1,4312.0,3.2078]
[1757006004697,1.3057,4312.1,4312.0,3.5721]
[1757006005102,1.3057,4312.1,4312.0,3.948]
[1757006007408,0.9244,4312.1,4312.0,3.948]
[1757006007601,1.3057,4312.1,4312.0,3.5721]
[1757006008612,1.3057,4312.1,4312.0,3.948]
[1757006009106,0.9244,4312.1,4312.0,4.295]
[1757006009817,1.3057,4312.1,4312.0,3.5721]
[1757006010409,1.3057,4312.1,4312.0,3.2078]
[1757006011010,1.3057,4312.1,4311.8,0.237]
[1757006011011,0.22,4312.0,4311.8,0.237]
[1757006011211,0.7467,4311.6,4311.5,3.8091]
[1757006011418,1.3057,4311.6,4311.5,4.532]
[1757006011714,1.3057,4311.6,4311.5,4.185]
[1757006011916,0.9244,4311.6,4311.5,4.532]
[1757006013113,1.3057,4311.6,4311.5,4.185]
[1757006013316,1.3057,4311.6,4311.5,3.8091]
[1757006013614,1.3057,4311.6,4311.5,4.185]
[1757006014418,1.3057,4311.6,4311.5,4.532]
[1757006014617,0.9244,4311.6,4311.5,4.532]
[1757006015406,0.9244,4311.6,4311.5,4.185]
[1757006015611,1.3057,4311.6,4311.5,4.185]
[1757006017108,1.3057,4311.6,4311.5,3.8091]
[1757006017716,1.3057,4311.6,4311.5,3.5721]
[1757006019117,1.3057,4311.6,4311.5,3.2078]
[1757006019914,1.3057,4311.3,4311.2,0.3643]
[1757006020119,0.22,4311.5,4311.0,3.2078]
[1757006020120,1.3057,4311.1,4311.0,3.2078]
[1757006020712,1.3057,4310.7,4310.6,0.6013]
[1757006020912,1.3057,4310.7,4310.6,0.3643]
[1757006021219,1.3057,4310.7,4310.6,0.7402]
[1757006025615,1.3057,4310.7,4310.5,3.2078]
[1757006025616,0.559,4310.6,4310.5,3.2078]
[1757006025817,1.3057,4310.6,4310.5,3.5721]
[1757006026017,0.9244,4310.9,4310.8,0.7402]
[1757006026217,1.3057,4310.9,4310.5,3.2078]
[1757006026519,1.3057,4310.6,4310.5,3.5721]
[1757006027316,1.3057,4310.6,4310.5,3.948]
[1757006028528,1.3057,4310.6,4310.5,3.5721]
[1757006028714,1.3057,4310.6,4310.0,3.2078]
[1757006028915,1.2901,4310.1,4310.0,3.9478]
[1757006029115,0.7761,4310.0,4309.5,5.27545921]
[1757006029327,0.7761,4310.0,4309.5,3.2078]
[1757006029328,1.2901,4309.6,4309.5,3.2078]
[1757006029828,1.2901,4309.6,4309.0,3.2078]
[1757006030125,0.9325,4309.1,4309.0,3.9478]
[1757006030316,1.2901,4309.1,4309.0,3.9478]
[1757006031727,1.2901,4309.1,4309.0,0.376]
[1757006032127,1.2901,4309.1,4309.0,0.74]
[1757006037226,1.2901,4309.1,4309.0,3.9478]
[1757006037838,0.9325,4309.1,4309.0,3.9478]
[1757006038433,1.2901,4309.1,4309.0,3.9478]
[1757006040944,3.4216,4310.0,4309.3,0.74]
[1757006041240,0.5623,4309.9,4309.8,1.0671]
[1757006041736,0.9325,4309.9,4309.8,1.0671]
[1757006041938,0.9325,4309.9,4309.8,0.74]
[1757006042840,1.2901,4309.9,4309.8,0.74]
[1757006046245,0.7278,4309.4,4309.3,0.613]
[1757006046541,1.2901,4309.4,4309.3,0.613]
[1757006046746,0.9325,4309.4,4309.3,1.0671]
[1757006047449,0.9325,4309.4,4309.3,0.74]
[1757006047643,1.2901,4309.4,4309.3,0.74]
[1757006049342,1.2901,4309.4,4309.0,3.2078]
[1757006049544,0.7278,4309.1,4309.0,3.2078]
[1757006049739,1.2901,4309.1,4309.0,3.2078]
[1757006049939,1.2901,4309.1,4309.0,3.9478]
[1757006050145,0.5623,4309.4,4309.3,0.74]
[1757006050346,0.5623,4309.4,4309.3,1.0671]
[1757006050550,1.2901,4309.4,4309.3,0.376]
[1757006050755,1.2901,4309.4,4309.3,0.74]
[1757006050945,0.9325,4309.4,4309.3,1.48472]
[1757006051145,0.5623,4309.4,4309.3,1.48472]
[1757006051451,0.9325,4309.4,4309.3,1.0671]
[1757006051651,0.9325,4309.4,4309.3,0.74]
[1757006051948,0.9325,4309.4,4309.3,1.15762]
[1757006052144,0.5623,4309.4,4309.3,1.48472]
[1757006052549,0.9325,4309.4,4309.3,1.48472]
[1757006053153,0.5623,4309.4,4309.3,1.48472]
[1757006053349,0.9325,4309.4,4309.3,1.15762]
[1757006054054,0.2138,4310.0,4309.1,1.28111]
[1757006054248,0.3702,4309.9,4309.8,0.74]
[1757006054746,0.7278,4309.9,4309.8,0.74]
[1757006054946,1.2901,4309.9,4309.8,0.74]
[1757006056653,1.2901,4309.9,4309.8,1.15758]
[1757006057746,0.5623,4309.9,4309.8,1.46438]
[1757006058052,0.572,4309.8,4309.6,3.62539]
[1757006058252,1.2877,4309.7,4309.6,3.98419]
[1757006058548,1.2877,4309.7,4309.6,4.33319]
[1757006058941,1.2877,4309.7,4309.6,4.57019]
[1757006059755,1.2877,4309.7,4309.6,4.1526]
[1757006060051,1.2877,4309.7,4309.6,3.2078]
[1757006060956,1.2877,4309.2,4309.1,3.2078]
[1757006062458,1.2877,4309.2,4309.1,3.5666]
[1757006062659,1.2877,4309.2,4309.1,3.9156]
[1757006064753,1.2877,4309.2,4309.1,3.5666]
[1757006065156,1.2877,4309.2,4309.1,0.3588]
[1757006065756,0.21,4309.0,4308.8,0.237]
[1757006066060,1.2877,4308.9,4308.8,0.9448]
[1757006067061,1.2877,4308.9,4308.8,1.36247]
[1757006067858,1.2877,4308.9,4308.8,0.9448]
[1757006069759,0.21,4309.5,4308.8,0.9448]
[1757006069957,1.2877,4309.4,4309.3,0.3588]
[1757006070357,1.2877,4309.4,4309.1,3.2078]
[1757006070358,0.7157,4309.4,4309.1,3.2078]
[1757006070558,0.572,4309.3,4309.1,3.2078]
[1757006070766,1.2877,4309.2,4309.1,3.5666]
[1757006072259,1.2877,4309.2,4309.1,3.9156]
[1757006072466,1.2877,4309.2,4309.1,4.63945]
[1757006072467,0.572,4309.2,4309.1,4.63945]
[1757006073065,0.931,4309.2,4309.1,4.2218]
[1757006073567,0.931,4309.2,4309.1,3.9156]
[1757006073764,1.2877,4309.2,4309.1,3.5666]
[1757006074067,0.21,4309.0,4308.8,2.30465921]
[1757006074266,1.2877,4308.9,4308.8,0.5958]
[1757006074764,1.2877,4308.9,4308.8,1.01347]
[1757006074966,1.2877,4308.9,4308.8,0.9448]
[1757006075668,1.2877,4308.9,4308.8,1.36247]
[1757006075864,1.2877,4308.9,4308.8,0.9448]
[1757006079066,1.2877,4308.9,4308.8,1.251]
[1757006079370,1.2877,4308.9,4308.8,1.66867]
[1757006079669,1.2877,4308.9,4308.8,0.9448]
[1757006081071,1.2877,4308.9,4308.8,1.36247]
[1757006081274,1.2877,4308.9,4308.8,0.9448]
[1757006081578,1.2877,4308.9,4308.8,1.36247]
[1757006082169,0.5617,4309.0,4308.6,3.4448]
[1757006082170,0.7157,4308.7,4308.6,3.4448]
[1757006082371,1.2877,4308.7,4308.6,3.8036]
[1757006082572,1.2877,4308.7,4308.6,4.1526]
[1757006083672,1.2877,4308.7,4308.6,3.2078]
[1757006084161,1.51979,4308.7,4308.6,3.2078]
[1757006084762,1.2877,4308.7,4308.6,3.2078]
[1757006085377,1.2877,4308.7,4308.6,3.5666]
[1757006088383,1.2719,4308.3,4308.2,0.614]
[1757006091180,0.5354,4308.2,4308.1,3.2078]
[1757006091378,1.2719,4308.2,4308.1,3.2078]
[1757006091684,0.7365,4308.2,4307.9,2.06765921]
[1757006091874,0.5847,4307.5,4307.4,9.14040687]
[1757006092177,0.5354,4308.3,4307.5,0.1339]
[1757006092380,0.3517,4308.4,4308.3,0.2869]
[1757006092581,0.3517,4308.4,4308.3,3.75172921]
[1757006092781,0.3517,4308.4,4308.3,7.75172921]
[1757006093769,0.3517,4308.4,4308.3,5.68407]
[1757006094069,0.2225,4309.5,4308.3,4.46910999]
[1757006094269,0.2225,4310.0,4309.8,0.7425]
[1757006094474,0.5847,4310.0,4309.9,3.9503]
[1757006095076,1.4944,4310.0,4309.9,3.9503]
[1757006095376,1.4944,4310.0,4309.9,3.2078]
[1757006095772,0.2225,4309.5,4309.4,3.4448]
[1757006095977,1.4944,4309.5,4309.4,3.4448]
[1757006096177,1.4944,4309.5,4309.4,3.2078]
[1757006100485,1.4944,4309.0,4308.9,0.377]
[1757006100891,0.5354,4308.9,4308.7,3.2078]
[1757006101085,0.5354,4308.9,4308.8,1.0294]
[1757006101389,0.5354,4309.5,4309.4,0.7425]
[1757006101578,0.5354,4309.5,4309.4,1.0294]
[1757006101783,0.2225,4310.0,4309.4,1.0294]
[1757006102082,0.7579,4310.0,4309.9,4.2372]
[1757006102688,1.1201,4310.0,4309.9,3.9503]
[1757006102990,0.7579,4310.0,4309.9,4.2372]
[1757006103987,1.4944,4310.0,4309.9,3.9503]
[1757006104181,1.4944,4310.0,4309.9,3.5848]
[1757006104890,0.2225,4309.5,4309.4,3.9503]
[1757006105091,1.1201,4309.5,4309.4,3.9503]
[1757006105289,0.5354,4309.5,4309.4,4.2372]
[1757006105691,1.4944,4309.5,4309.4,3.9503]
[1757006105893,0.7579,4309.5,4309.4,3.9503]
[1757006106088,0.7579,4309.5,4309.4,4.2372]
[1757006106487,1.1201,4309.5,4309.4,3.9503]
[1757006106684,0.5354,4310.0,4309.9,0.7425]
[1757006106889,0.2225,4310.5,4309.9,4.2372]
[1757006107094,1.1201,4310.5,4310.4,0.7425]
[1757006107793,0.5354,4310.5,4310.4,4.2372]
[1757006108094,1.1346,4310.9,4310.8,0.7425]
[1757006108294,0.8976,4310.9,4310.8,0.7425]
[1757006108489,1.2719,4310.9,4310.8,0.7425]
[1757006108995,1.4944,4310.5,4310.4,3.5848]
[1757006109297,1.1201,4310.5,4310.4,3.9503]
[1757006109993,1.4944,4310.5,4310.4,3.9503]
[1757006111190,1.4944,4310.5,4310.4,3.2078]
[1757006111691,0.959,4310.5,4309.9,3.2078]
[1757006111996,1.4944,4310.0,4309.9,3.9503]
[1757006113591,0.5354,4310.0,4309.9,4.2372]
[1757006114090,1.1201,4310.0,4309.9,4.2372]
[1757006114296,1.1201,4310.0,4309.9,3.9503]
[1757006115398,1.1201,4310.0,4309.9,4.2372]
[1757006115601,1.1201,4310.0,4309.9,3.9503]
[1757006115796,1.4944,4310.0,4309.9,3.9503]
[1757006116498,0.7579,4310.0,4309.9,4.2372]
[1757006116699,0.5354,4310.0,4309.9,4.2372]
[1757006116901,0.2225,4310.5,4309.9,4.2372]
[1757006117094,0.2225,4310.5,4309.9,3.9503]
[1757006117296,1.4944,4310.5,4310.4,3.5848]
[1757006118500,0.7692,4311.0,4310.5,0.2697]
[1757006118702,0.7692,4311.0,4310.9,0.9677]
[1757006118897,0.7692,4311.0,4310.9,4.1755]
[1757006119498,0.5467,4311.0,4310.9,4.1755]
[1757006119693,0.5467,4311.4,4311.0,0.2697]
[1757006119902,0.913,4311.4,4311.3,0.698]
[1757006121205,1.2739,4311.4,4311.3,0.698]
[1757006122503,0.913,4311.4,4311.3,0.698]
[1757006122808,0.5467,4311.7,4311.6,0.698]
[1757006123004,0.5467,4311.9,4311.8,0.698]
[1757006123306,1.2739,4311.9,4311.8,0.3534]
[1757006123604,1.2739,4311.9,4311.8,0.698]
[1757006124302,0.913,4311.9,4311.8,0.698]
[1757006124698,1.2739,4311.9,4311.8,0.698]
[1757006125010,0.5467,4311.8,4311.6,3.2078]
[1757006125308,1.2739,4311.7,4311.6,3.5612]
[1757006126218,1.2739,4311.7,4311.6,3.2078]
[1757006126712,0.5768,4311.0,4310.9,4.1428]
[1757006127017,1.1235,4311.0,4310.9,4.4125]
[1757006127215,0.7572,4311.0,4310.9,4.4125]
[1757006128615,1.4844,4311.0,4310.9,3.9058]
[1757006128821,1.4844,4311.0,4310.9,3.5612]
[1757006129615,1.4844,4311.0,4310.9,3.9058]
[1757006129815,1.4844,4311.0,4310.9,3.2078]
[1757006130020,0.9377,4310.5,4310.4,3.2078]
[1757006130317,1.4844,4310.5,4310.4,3.5612]
[1757006130617,1.4844,4310.5,4310.4,3.2078]
[1757006131230,1.4844,4310.5,4310.4,3.5612]
[1757006131630,1.4844,4310.5,4310.4,3.9058]
[1757006133339,1.4844,4310.5,4310.4,3.5612]
[1757006134330,1.4844,4310.5,4310.4,3.2078]
[1757006134536,1.4844,4310.5,4310.4,3.5612]
[1757006135232,0.2105,4311.0,4310.4,4.1755]
[1757006135432,0.2105,4311.0,4310.4,3.9058]
[1757006135631,0.5467,4310.9,4310.4,4.1755]
[1757006135827,0.4465,4311.0,4310.4,3.9058]
[1757006136034,0.4465,4311.0,4310.4,4.1755]
[1757006136531,1.1235,4311.0,4310.9,0.698]
[1757006136735,0.7572,4311.0,4310.9,0.9677]
[1757006136935,1.1235,4311.0,4310.9,0.9677]
[1757006137133,0.236,4311.1,4310.9,0.9677]
[1757006137440,0.5467,4311.3,4311.2,0.9677]
[1757006137738,0.2105,4311.5,4311.4,0.698]
[1757006137939,0.5768,4311.5,4311.4,0.698]
[1757006138332,1.1235,4311.5,4311.4,0.698]
[1757006140934,3.2078,4312.4,4311.4,0.9677]
[1757006140935,0.5467,4311.9,4311.4,0.9677]
[1757006141139,1.1355,4312.0,4311.9,0.698]
[1757006141537,0.7692,4312.0,4311.9,0.9677]
[1757006142537,1.1355,4312.0,4311.9,0.9677]
[1757006142733,1.1355,4312.0,4311.9,0.698]
[1757006142936,1.4964,4312.0,4311.9,3.9058]
[1757006144741,0.7692,4312.0,4311.9,4.1755]
[1757006145942,0.5467,4312.4,4311.9,4.1755]
[1757006146143,2.48408876,4312.6,4311.9,4.1755]
[1757006146144,0.4465,4312.5,4311.9,3.9058]
[1757006146546,0.5467,4312.4,4311.9,3.9058]
[1757006146737,0.4465,4312.5,4311.9,3.9058]
[1757006146932,0.5467,4312.4,4311.9,4.1755]
[1757006147843,0.2105,4312.5,4311.9,3.9058]
[1757006148039,0.4465,4312.5,4311.9,3.9058]
[1757006148240,0.4969,4312.4,4311.9,3.9058]
[1757006148934,0.4465,4312.5,4311.9,3.9058]
[1757006149138,0.9434,4312.5,4312.4,0.7004]
[1757006149336,1.6507,4312.5,4312.4,0.7004]
[1757006150544,1.4147,4312.5,4312.4,0.7004]
[1757006151645,2.48408876,4312.6,4312.5,0.9515]
[1757006152150,3.34418876,4312.6,4312.5,3.9082]
[1757006153048,2.98098876,4312.6,4312.5,4.1593]
[1757006157754,2.98098876,4312.6,4312.5,4.3953]
[1757006158252,3.34418876,4312.6,4312.5,4.1442]
[1757006158457,3.68828876,4312.6,4312.5,4.1442]
[1757006159852,3.34418876,4312.6,4312.5,4.1442]
[1757006160054,3.34418876,4312.6,4312.5,4.3953]
[1757006160361,3.34418876,4312.6,4312.5,4.1442]
[1757006161362,3.34418876,4312.6,4312.5,4.3953]
[1757006161858,2.98098876,4312.6,4312.5,4.81258]
[1757006162054,2.48408876,4312.6,4312.5,4.81258]
[1757006162255,2.98098876,4312.6,4312.5,4.81258]
[1757006164756,2.48408876,4312.6,4312.5,4.81258]
[1757006165255,0.2105,4313.5,4313.4,1.1973]
[1757006165256,0.5737,4313.5,4313.4,1.1973]
[1757006165457,0.9178,4313.5,4313.4,3.2078]
[1757006165958,0.9178,4313.5,4313.4,3.5745]
[1757006166150,0.3632,4313.5,4313.4,4.82229]
[1757006166355,3.2078,4314.8,4313.6,1.61447]
[1757006166552,0.9178,4314.0,4313.9,0.7004]
[1757006167359,1.4147,4314.0,4313.9,0.7004]
[1757006167852,1.4147,4314.0,4313.9,3.9082]
[1757006170151,5.4147,4314.0,4313.9,3.2078]
[1757006170356,1.6507,4314.0,4313.9,3.2078]
[1757006171059,1.6507,4314.0,4313.5,0.236]
[1757006172252,1.2042,4313.9,4313.8,3.2078]
[1757006172856,1.2042,4313.9,4313.5,0.236]
[1757006173264,0.7073,4313.3,4313.2,3.8105]
[1757006173460,1.2042,4313.3,4313.2,4.1442]
[1757006174964,1.2042,4313.3,4313.2,3.2078]
[1757006177463,1.2042,4313.3,4313.2,3.9082]
[1757006177663,0.4969,4313.3,4313.2,4.4119]
[1757006177868,0.8594,4313.3,4313.2,4.4119]
[1757006178672,1.2075,4313.3,4313.2,3.9082]
[1757006178969,1.2075,4313.3,4313.2,4.4119]
[1757006179672,0.5341,4313.5,4313.4,1.2157]
[1757006180168,0.8966,4313.5,4313.4,1.2157]
[1757006180367,1.11,4313.5,4313.4,1.2157]
[1757006181971,0.2105,4314.0,4313.4,0.712]
[1757006182167,1.2447,4314.4,4314.3,0.3664]
[1757006182669,1.4581,4314.0,4313.9,0.712]
[1757006183066,1.11,4314.0,4313.9,1.2157]
[1757006183269,0.9275,4314.5,4314.4,0.3664]
[1757006183874,1.4616,4314.5,4314.4,0.712]
[1757006186773,1.4616,4314.5,4314.4,0.3664]
[1757006186977,1.4616,4314.5,4314.2,3.2078]
[1757006187180,0.5341,4314.4,4314.2,3.2078]
[1757006187379,1.2447,4314.3,4314.2,3.2078]
[1757006188280,1.2447,4314.3,4314.2,3.9198]
[1757006190175,1.2447,4314.3,4314.2,3.5742]
[1757006190370,1.2447,4314.3,4313.8,0.7397]
[1757006190674,1.4581,4314.0,4313.9,0.3664]
[1757006191174,1.4581,4314.0,4313.9,0.712]
[1757006191374,1.4581,4314.0,4313.9,1.2157]
[1757006192369,0.236,4314.4,4314.0,0.5037]
[1757006192677,1.2447,4314.1,4314.0,0.712]
[1757006193975,1.2447,4314.1,4314.0,1.2157]
[1757006194276,0.2169,4314.5,4314.0,1.2157]
[1757006194479,0.2169,4314.5,4314.1,0.5037]
[1757006194670,0.8966,4314.4,4314.3,0.712]
[1757006195781,0.8966,4314.4,4314.3,1.2157]
[1757006196682,1.2447,4314.4,4314.3,0.712]
[1757006197472,1.2447,4314.4,4314.3,0.3664]
[1757006199386,0.7106,4314.4,4314.1,3.2078]
[1757006199588,0.2169,4314.5,4314.1,3.2078]
[1757006199789,0.5341,4314.4,4314.2,0.3664]
[1757006200086,1.2447,4314.3,4314.2,0.3664]
[1757006200989,0.5341,4314.2,4314.1,3.2078]
[1757006201186,1.2447,4314.2,4314.1,3.2078]
[1757006201585,1.2447,4314.2,4314.1,3.5742]